bitfinex/quotes_ETHUSD_20250626
["timestamp","ask_amount","ask_price","bid_price","bid_amount"]
[1750914437899,0.2016,2477.6,2477.1,6.7646]
[1750914438482,0.8303,2477.7,2477.1,6.563]
[1750914438692,0.2016,2477.3,2477.1,6.563]
[1750914438905,0.7745,2477.3,2476.6,4.0376998]
[1750914439200,0.2016,2477.2,2476.7,0.2016]
[1750914439706,0.2016,2477.2,2476.7,4.23920843]
[1750914440119,0.2016,2477.2,2476.7,6.7676]
[1750914441878,0.7745,2477.3,2476.6,14.03769603]
[1750914441879,0.7745,2477.1,2476.6,6.566]
[1750914442087,0.2016,2476.9,2476.6,6.566]
[1750914443000,0.2016,2476.9,2476.7,4.03754715]
[1750914443224,0.2016,2477.1,2476.7,4.23912275]
[1750914443402,0.2016,2477.1,2476.9,4.03721957]
[1750914444504,0.7745,2477.4,2477.1,4.03687362]
[1750914444708,1.695,2477.5,2477.1,4.03687362]
[1750914444709,0.2016,2477.5,2477.1,4.03687362]
[1750914444908,0.2016,2477.5,2477.2,4.03679951]
[1750914445513,0.2016,2477.5,2477.1,4.03690288]
[1750914446425,0.2016,2477.5,2477.0,10.80470807]
[1750914446729,0.2016,2477.5,2477.2,4.03678684]
[1750914447235,0.2016,2477.5,2477.3,4.03664082]
[1750914447437,0.7564,2477.6,2477.3,4.03664082]
[1750914447597,1.695,2477.7,2477.4,4.03648986]
[1750914447796,1.695,2477.7,2477.3,4.23824082]
[1750914447797,1.695,2477.7,2477.5,0.2016]
[1750914448010,1.695,2477.7,2477.5,4.23791288]
[1750914449005,0.2016,2477.9,2477.5,4.23791288]
[1750914449712,0.2016,2477.9,2477.5,0.2016]
[1750914449713,0.7545,2477.8,2477.5,0.2016]
[1750914449895,0.7545,2477.8,2477.4,6.572]
[1750914450114,0.9561,2477.8,2477.3,0.2016]
[1750914451223,0.2016,2477.5,2477.1,10.2016]
[1750914452501,0.2016,2477.5,2477.1,0.2016]
[1750914457439,0.2016,2477.5,2476.6,10.8136]
[1750914457440,0.7646,2477.4,2476.6,10.8136]
[1750914457740,0.2016,2477.3,2476.8,0.2016]
[1750914457910,0.7646,2477.2,2476.8,0.2016]
[1750914459534,1.26487062,2477.2,2476.8,0.2016]
[1750914459735,0.7646,2477.2,2476.8,0.2016]
[1750914460444,0.2016,2477.0,2476.6,6.572]
[1750914461440,0.8292,2477.6,2477.0,10.0]
[1750914461626,0.8292,2477.6,2477.0,10.6061181]
[1750914462029,0.8292,2477.6,2477.0,6.569]
[1750914462225,0.7968,2477.5,2476.9,6.588]
[1750914463819,0.7968,2477.5,2476.9,10.62523753]
[1750914464838,0.7968,2477.5,2476.9,6.588]
[1750914465339,0.7968,2477.5,2476.8,6.589]
[1750914466144,0.7968,2477.5,2476.8,10.62641869]
[1750914466739,0.7968,2477.5,2476.9,4.03721602]
[1750914468324,0.7968,2477.5,2476.8,10.62642454]
[1750914468845,0.7968,2477.5,2476.9,4.03728177]
[1750914470941,0.7968,2477.5,2477.0,4.03701843]
[1750914471135,0.7968,2477.5,2476.9,7.02754666]
[1750914471332,0.7968,2477.5,2477.0,4.8326417]
[1750914471532,0.7968,2477.5,2477.1,0.2016]
[1750914471738,0.7968,2477.5,2477.2,4.03667279]
[1750914474352,0.7968,2477.5,2477.3,4.03665227]
[1750914474739,0.7968,2477.5,2477.2,4.03673821]
[1750914480630,0.7968,2477.5,2477.1,4.23852367]
[1750914481527,0.8159,2477.4,2476.9,6.583]
[1750914481727,0.2016,2477.3,2476.8,6.7816]
[1750914481926,0.2016,2477.3,2476.9,4.03730254]
[1750914482528,0.2016,2477.3,2476.8,10.81899591]
[1750914482724,0.2016,2477.3,2476.8,6.7816]
[1750914482947,0.8159,2477.4,2477.1,4.03694511]
[1750914483130,0.8159,2477.4,2477.0,4.23866579]
[1750914484147,0.2016,2477.5,2477.1,4.03697872]
[1750914484546,0.2016,2477.5,2477.2,4.03681575]
[1750914486079,0.7926,2477.6,2477.3,4.03657259]
[1750914486233,0.7926,2477.6,2477.2,4.23833477]
[1750914486562,0.7926,2477.6,2477.3,4.03665263]
[1750914488163,0.7926,2477.6,2477.4,4.03647804]
[1750914489765,0.7926,2477.6,2477.2,10.82541508]
[1750914489766,0.7926,2477.6,2477.3,4.03658322]
[1750914490137,0.7926,2477.6,2477.2,10.82536678]
[1750914490331,0.7926,2477.6,2477.3,4.03665154]
[1750914490532,0.7926,2477.6,2477.2,10.8253361]
[1750914491069,0.7926,2477.6,2477.2,10.82538679]
[1750914491453,0.7926,2477.6,2477.3,4.03664689]
[1750914494366,1.06282,2477.6,2477.2,6.587]
[1750914494569,0.2016,2477.5,2477.1,4.23844584]
[1750914494782,0.2016,2477.5,2477.2,6.579]
[1750914496258,0.2016,2477.5,2477.2,4.0367991]
[1750914496488,0.2016,2477.5,2477.2,10.6157991]
[1750914497456,0.2016,2477.5,2477.2,4.0367991]
[1750914498080,0.2016,2477.5,2477.2,10.6127991]
[1750914500596,0.2016,2477.5,2477.2,6.576]
[1750914501303,0.2016,2477.5,2477.2,10.61269021]
[1750914502066,0.2016,2477.5,2477.3,4.0365901]
[1750914503006,0.2016,2477.5,2477.4,4.03648986]
[1750914503220,22.6742778,2478.5,2477.4,4.03648986]
[1750914503221,3.42782837,2478.3,2477.8,4.03580828]
[1750914503512,0.34278284,2478.2,2478.0,4.0354929]
[1750914503730,2.6629,2478.3,2478.0,4.0354929]
[1750914504081,2.6629,2478.3,2477.9,4.03552447]
[1750914504422,2.6629,2478.3,2478.0,4.0354988]
[1750914504588,2.6629,2478.3,2477.9,4.0355743]
[1750914504910,2.6629,2478.3,2478.0,4.03550051]
[1750914505111,2.4613,2478.3,2478.0,4.03550051]
[1750914505817,2.4613,2478.3,2477.9,4.23719328]
[1750914506478,2.4613,2478.3,2478.0,4.03541207]
[1750914506991,2.4613,2478.3,2478.0,4.03537959]
[1750914507168,2.4613,2478.3,2478.1,4.03528428]
[1750914507800,0.2016,2478.4,2478.3,4.035024]
[1750914508000,0.2016,2478.7,2478.4,4.03483109]
[1750914508402,0.2016,2478.7,2478.5,4.0346858]
[1750914508612,0.2016,2478.7,2478.6,4.03453562]
[1750914508788,0.2016,2479.0,2478.7,4.03427742]
[1750914508982,0.2016,2479.0,2478.6,4.23606138]
[1750914509191,0.2016,2479.0,2478.6,4.23610246]
[1750914510007,0.2016,2479.0,2478.6,0.2016]
[1750914510309,0.7688,2479.1,2478.6,4.86381816]
[1750914510612,0.7688,2479.1,2478.7,4.0342595]
[1750914511214,0.7688,2479.1,2478.8,4.03419011]
[1750914511596,0.7688,2479.1,2478.7,4.03429339]
[1750914512112,0.7688,2479.1,2478.6,4.86375546]
[1750914512477,0.7688,2479.1,2478.5,10.60765695]
[1750914512712,0.7688,2479.1,2478.5,4.03465695]
[1750914512915,0.8198,2479.0,2478.5,6.571]
[1750914513578,0.8198,2479.0,2478.3,4.03495118]
[1750914513778,0.8198,2479.0,2478.4,6.571]
[1750914514510,0.8198,2479.0,2478.3,6.57]
[1750914516703,0.8198,2479.0,2478.3,10.60489999]
[1750914517020,0.8279,2478.9,2478.3,6.57]
[1750914517225,1.701,2478.8,2478.3,6.57]
[1750914517717,0.826,2478.7,2478.3,6.57]
[1750914520331,0.8298,2478.5,2478.2,6.567]
[1750914520516,0.8298,2478.5,2478.1,6.567]
[1750914520715,0.2016,2478.4,2478.1,6.567]
[1750914521221,0.2016,2478.4,2478.0,0.2016]
[1750914521389,0.7666,2478.7,2477.9,6.566]
[1750914521589,0.7666,2478.1,2477.9,6.566]
[1750914521921,0.7666,2478.1,2477.8,0.2016]
[1750914522120,0.7666,2478.1,2477.7,0.55853225]
[1750914522308,0.2016,2478.0,2477.7,7.12353225]
[1750914522619,0.2016,2478.0,2477.7,0.55853225]
[1750914522823,0.2016,2478.0,2477.6,6.7686]
[1750914522985,0.8327,2477.9,2477.4,16.567]
[1750914523186,0.8327,2477.9,2477.3,7.22914666]
[1750914523187,0.2016,2477.8,2477.3,7.22914666]
[1750914523500,0.2016,2477.8,2477.4,6.567]
[1750914523919,0.2016,2477.8,2477.4,16.567]
[1750914524537,0.2016,2477.8,2477.6,4.03613216]
[1750914524705,0.2016,2477.8,2477.5,4.03625184]
[1750914524902,0.2016,2477.8,2477.6,4.03616026]
[1750914525940,0.2016,2477.8,2477.4,20.60346536]
[1750914525941,0.2016,2477.8,2477.5,4.03629819]
[1750914527842,0.2016,2477.8,2477.6,4.03613974]
[1750914528437,1.0343,2477.9,2477.7,4.03600113]
[1750914530331,1.0343,2477.9,2477.8,4.03583824]
[1750914530844,0.7609,2478.1,2477.9,4.03565251]
[1750914531146,0.7609,2478.1,2477.7,4.03598306]
[1750914531147,0.7609,2478.1,2478.0,4.03551251]
[1750914531447,0.2016,2478.2,2478.1,4.03534966]
[1750914532543,0.2016,2478.2,2478.0,4.03543625]
[1750914532759,0.2016,2478.2,2477.9,4.03557907]
[1750914533854,0.2016,2478.2,2478.0,4.0355033]
[1750914534468,0.2016,2478.2,2477.9,4.03563046]
[1750914534762,0.833,2478.1,2477.8,10.61072768]
[1750914535553,0.833,2478.1,2477.9,4.03566737]
[1750914536514,0.833,2478.1,2477.9,4.03567537]
[1750914536718,0.833,2478.1,2478.0,4.03551251]
[1750914536924,0.2016,2478.2,2478.0,4.03551251]
[1750914539168,0.2016,2478.2,2478.1,4.03534966]
[1750914539337,0.9632445,2478.8,2478.1,11.26445331]
[1750914539338,0.2016,2478.5,2478.1,11.26445331]
[1750914539538,1.702,2478.6,2478.1,13.80314666]
[1750914539744,0.8098,2478.9,2478.6,4.0344513]
[1750914539941,0.8098,2478.9,2478.7,4.03436245]
[1750914540267,0.2016,2479.0,2478.7,4.03436245]
[1750914540462,0.2016,2479.0,2478.6,4.03447082]
[1750914540662,0.47381,2479.0,2478.5,4.23622502]
[1750914540841,0.2016,2479.0,2478.6,4.03451655]
[1750914541248,0.2016,2479.0,2478.6,4.03451393]
[1750914541565,0.2016,2479.0,2478.6,4.03453562]
[1750914543938,0.2016,2479.0,2478.6,4.03453485]
[1750914544636,0.2016,2479.0,2478.7,4.03436653]
[1750914544836,0.2016,2479.0,2478.5,0.2016]
[1750914545264,0.2016,2479.0,2478.5,4.23622738]
[1750914546268,0.2016,2479.0,2478.6,4.03439992]
[1750914546569,0.2016,2479.0,2478.5,4.2362186]
[1750914546771,0.2016,2479.0,2478.5,4.23626074]
[1750914546986,0.2016,2479.0,2478.6,4.03442363]
[1750914547142,0.2016,2479.0,2478.7,4.03436273]
[1750914547869,0.2016,2479.0,2478.6,4.03448333]
[1750914548378,0.2016,2479.0,2478.5,4.23623357]
[1750914548548,0.2016,2479.0,2478.6,4.03452861]
[1750914549269,0.2016,2479.0,2478.5,4.23622445]
[1750914549952,0.2016,2479.0,2478.6,4.03451045]
[1750914550373,0.2016,2479.0,2478.5,4.23624641]
[1750914551874,0.2016,2479.0,2478.6,4.03453271]
[1750914553276,0.2016,2479.0,2478.5,4.23621903]
[1750914553576,0.2016,2479.0,2478.6,4.03449289]
[1750914553749,0.2016,2479.0,2478.5,0.2016]
[1750914554074,0.2016,2479.0,2478.5,4.2362414]
[1750914555269,0.814,2478.9,2478.5,4.2362414]
[1750914555873,0.814,2478.9,2478.4,13.60254666]
[1750914555874,0.9745,2478.8,2478.4,6.575]
[1750914556473,0.7729,2478.7,2477.9,4.03552128]
[1750914556675,4.30581164,2478.9,2477.9,10.59752128]
[1750914556676,0.7651,2478.3,2477.9,10.59752128]
[1750914556901,0.9667,2478.3,2477.8,4.23741079]
[1750914557172,0.9667,2478.3,2477.8,0.2016]
[1750914557340,0.9667,2478.3,2477.8,4.23737892]
[1750914558161,0.9667,2478.3,2477.9,4.03563454]
[1750914558365,1.23514879,2478.9,2477.7,11.12201671]
[1750914558366,0.7702,2478.5,2478.1,7.02754666]
[1750914558563,0.8152,2478.7,2478.4,4.03477703]
[1750914558766,1.702,2478.8,2478.4,4.23637703]
[1750914558767,1.9036,2478.8,2478.4,4.23637703]
[1750914559278,1.9036,2478.8,2478.5,4.03463835]
[1750914559446,1.9036,2478.8,2478.5,4.03462902]
[1750914559846,1.9036,2478.8,2478.5,4.03468409]
[1750914560776,0.2016,2478.8,2478.5,4.03468409]
[1750914561475,0.7773,2479.1,2478.6,4.03452881]
[1750914561680,0.2016,2479.0,2478.6,4.03452881]
[1750914562585,0.2016,2479.0,2478.7,4.03435983]
[1750914562965,0.2016,2479.0,2478.5,10.80829073]
[1750914562966,0.2016,2479.0,2478.5,10.80822916]
[1750914563165,0.2016,2479.0,2478.6,4.03453441]
[1750914563778,0.2016,2479.0,2478.7,4.03433941]
[1750914565383,1.702,2479.2,2479.0,4.03377836]
[1750914565583,1.702,2479.2,2478.9,4.23562809]
[1750914565777,1.702,2479.2,2479.1,4.03372191]
[1750914565971,0.8107,2479.3,2479.1,4.03372191]
[1750914566176,0.2016,2479.4,2479.0,4.03388373]
[1750914566397,2.5097,2479.5,2479.3,4.03339652]
[1750914566560,1.699,2479.5,2479.3,4.03339652]
[1750914566761,1.699,2479.5,2479.2,4.03354723]
[1750914566762,1.699,2479.5,2479.2,4.03348711]
[1750914567589,1.699,2479.5,2479.1,4.23527499]
[1750914567590,1.699,2479.5,2479.3,4.0333683]
[1750914567761,1.699,2479.5,2479.1,4.23523017]
[1750914568368,1.699,2479.5,2479.1,0.2016]
[1750914570368,1.699,2479.5,2479.1,4.2352858]
[1750914570562,1.699,2479.5,2479.2,4.03342025]
[1750914570783,1.699,2479.5,2479.3,0.2016]
[1750914570992,1.699,2479.5,2479.3,4.23496537]
[1750914573998,1.699,2479.5,2479.4,4.03323384]
[1750914574571,0.8107,2479.7,2479.5,4.03306735]
[1750914574792,0.8107,2479.7,2479.3,4.23497452]
[1750914574793,0.8107,2479.7,2479.4,4.03317363]
[1750914575300,0.8107,2479.7,2479.3,4.23492504]
[1750914575465,0.8107,2479.7,2479.4,4.03321523]
[1750914575866,0.8107,2479.7,2479.3,4.23492983]
[1750914576777,0.2016,2479.8,2479.4,4.0331777]
[1750914577200,0.2016,2479.8,2479.3,4.23492331]
[1750914577403,0.2016,2479.8,2479.3,4.23495246]
[1750914577575,0.7804,2479.9,2479.6,4.03290064]
[1750914577896,0.7804,2479.9,2479.6,4.23450064]
[1750914578104,0.7804,2479.9,2479.6,0.2016]
[1750914578270,0.7804,2479.9,2479.6,4.23449347]
[1750914578878,0.7804,2479.9,2479.6,0.2016]
[1750914579283,2.6775,2480.1,2479.6,4.23434988]
[1750914579508,2.6775,2480.1,2479.5,4.82814588]
[1750914579509,0.7779,2480.1,2479.7,11.06027995]
[1750914579796,0.955,2480.3,2479.9,4.03241642]
[1750914580300,0.7542,2480.3,2479.9,4.03242066]
[1750914580506,0.7542,2480.3,2480.0,0.2016]
[1750914580876,0.7542,2480.3,2479.7,4.0326503]
[1750914581077,0.955,2480.3,2479.8,0.2016]
[1750914582607,0.955,2480.3,2479.8,4.23418252]
[1750914582804,0.7542,2480.3,2479.8,0.8189]
[1750914583004,0.7542,2480.3,2480.0,4.23375353]
[1750914583904,0.7542,2480.3,2480.1,4.03199276]
[1750914584109,0.2008,2480.5,2480.1,4.03209548]
[1750914584110,0.9834,2480.5,2480.1,4.03209548]
[1750914584279,0.9834,2480.5,2480.2,4.03191868]
[1750914584614,0.7826,2480.5,2480.3,0.2008]
[1750914585074,0.7826,2480.5,2479.8,7.84644666]
[1750914585075,0.7826,2480.5,2479.8,10.8189]
[1750914585277,0.2008,2480.4,2479.9,6.7636]
[1750914585808,0.7866,2480.3,2479.9,6.7636]
[1750914588106,0.7866,2480.3,2479.9,0.2016]
[1750914588307,0.2016,2479.9,2479.4,6.7646]
[1750914588609,0.7743,2479.8,2479.4,6.7646]
[1750914589713,0.7743,2479.8,2479.4,10.79782494]
[1750914590815,0.7743,2479.8,2479.4,6.7646]
[1750914591127,0.7743,2479.8,2479.4,10.79783143]
[1750914593330,0.7743,2479.8,2479.4,6.7646]
[1750914595131,0.8143,2479.4,2479.0,0.2016]
[1750914595288,0.8143,2479.4,2479.0,6.7586]
[1750914595890,0.8143,2479.4,2479.0,10.79248286]
[1750914596396,0.8143,2479.4,2479.0,6.7586]
[1750914596581,0.8143,2479.4,2479.0,10.79241719]
[1750914597320,0.8143,2479.4,2479.0,6.7586]
[1750914598590,0.8143,2479.4,2479.0,10.79247931]
[1750914599414,0.8143,2479.4,2479.0,6.7586]
[1750914600098,0.8143,2479.4,2479.0,6.557]
[1750914600322,0.2016,2479.3,2479.0,6.557]
[1750914600507,0.2016,2479.3,2478.9,0.50835811]
[1750914600714,0.2016,2479.3,2478.9,7.06435811]
[1750914601295,0.8067,2479.2,2478.9,0.2016]
[1750914603445,0.2016,2479.3,2478.9,0.9611]
[1750914603730,0.7817,2479.5,2478.9,0.9611]
[1750914603731,0.7817,2479.5,2479.3,4.03334137]
[1750914603945,0.9640274,2480.2,2479.4,4.79261485]
[1750914603946,1.693,2480.0,2479.4,4.79261485]
[1750914604225,1.693,2480.0,2479.6,4.03288372]
[1750914604403,1.693,2480.0,2479.6,4.23448372]
[1750914604992,1.693,2480.0,2479.6,0.2016]
[1750914605192,1.693,2480.0,2479.6,4.23448988]
[1750914605747,0.2016,2480.1,2479.6,0.2016]
[1750914605903,0.7817,2480.2,2479.8,0.8286]
[1750914606224,0.7817,2480.2,2479.9,4.0322718]
[1750914606392,0.8095,2480.5,2479.8,0.8286]
[1750914606592,0.8095,2480.5,2480.0,4.03210468]
[1750914606803,0.8095,2480.5,2480.1,4.03208791]
[1750914607216,0.8095,2480.5,2480.0,4.03223107]
[1750914607437,0.8095,2480.5,2480.1,4.03206528]
[1750914607635,0.8095,2480.5,2479.9,0.55]
[1750914607821,0.8095,2480.5,2480.2,4.03177969]
[1750914608144,0.8095,2480.5,2480.2,4.03185773]
[1750914608509,0.8095,2480.5,2480.1,4.03202593]
[1750914608716,0.8095,2480.5,2480.0,4.03211269]
[1750914609413,0.8095,2480.5,2480.1,4.03208666]
[1750914610439,0.8095,2480.5,2480.0,4.03218142]
[1750914610937,0.8095,2480.5,2480.1,4.03207786]
[1750914611442,0.8095,2480.5,2479.7,10.0]
[1750914611443,0.8095,2480.5,2480.0,4.03225623]
[1750914611611,1.05975,2480.5,2480.0,4.03225623]
[1750914612013,1.05975,2480.5,2480.0,4.03214296]
[1750914612437,1.05975,2480.5,2480.2,4.03184875]
[1750914613044,0.8095,2480.5,2480.0,4.03213616]
[1750914613251,0.8095,2480.5,2480.2,4.03184056]
[1750914614410,0.8095,2480.5,2480.4,4.0316078]
[1750914615642,0.8095,2480.5,2480.3,4.0317008]
[1750914615847,0.8095,2480.5,2480.3,4.2325008]
[1750914617143,0.8095,2480.5,2480.3,4.03175937]
[1750914617328,2.4476,2480.7,2480.4,4.0316078]
[1750914617709,0.7546,2480.7,2480.5,4.0313436]
[1750914618038,1.693,2480.9,2480.7,4.0310204]
[1750914618039,2.6931,2480.9,2480.7,4.0310204]
[1750914618241,2.6931,2480.9,2480.8,4.03095775]
[1750914618560,2.6931,2480.9,2480.5,4.03144527]
[1750914618750,2.6931,2480.9,2480.7,4.03111349]
[1750914619260,2.6931,2480.9,2480.5,4.03144527]
[1750914619261,2.6931,2480.9,2480.6,4.03121051]
[1750914619744,2.4923,2480.9,2480.7,4.23191101]
[1750914620133,0.7993,2480.9,2480.7,4.23191101]
[1750914620337,0.8046,2481.5,2480.5,0.8114]
[1750914620535,0.2008,2481.3,2481.0,4.03053147]
[1750914620739,0.2008,2481.3,2480.8,0.2008]
[1750914620924,0.8046,2481.2,2480.8,4.23161979]
[1750914621129,0.8046,2481.2,2480.9,4.03076254]
[1750914621844,0.8046,2481.2,2481.0,4.03057713]
[1750914622022,0.8046,2481.2,2481.1,4.03047035]
[1750914622225,0.8316,2481.4,2481.1,4.03047035]
[1750914623154,0.8316,2481.4,2481.0,4.23135428]
[1750914623819,0.8316,2481.4,2481.0,0.2008]
[1750914624854,0.8316,2481.4,2481.0,4.23142286]
[1750914625033,0.8316,2481.4,2481.0,0.2008]
[1750914625233,0.8316,2481.4,2481.0,4.23139121]
[1750914625449,0.8316,2481.4,2481.0,0.2008]
[1750914627052,0.8316,2481.4,2480.5,10.8114]
[1750914627259,0.2008,2481.3,2480.8,0.2008]
[1750914627559,0.8318,2481.2,2480.8,0.2008]
[1750914628245,0.8318,2480.9,2480.6,0.2008]
[1750914629119,0.2008,2481.0,2480.6,0.2008]
[1750914629322,0.7908,2481.2,2480.7,0.55]
[1750914629535,0.7908,2481.2,2480.9,0.2008]
[1750914629729,0.7908,2481.2,2480.9,4.23152656]
[1750914629935,0.2008,2481.4,2480.9,4.23152656]
[1750914629936,0.2008,2481.4,2480.9,4.23153849]
[1750914630155,0.2008,2481.4,2481.1,0.2008]
[1750914630360,0.2008,2481.4,2481.1,4.23118733]
[1750914631632,0.2008,2481.4,2481.2,4.03027807]
[1750914633959,1.7,2481.7,2481.2,4.03029229]
[1750914634159,1.7,2481.7,2481.3,4.23093047]
[1750914635326,1.7,2481.7,2481.3,0.2008]
[1750914636762,0.7842,2481.6,2481.3,0.2008]
[1750914637063,0.985,2481.6,2481.2,0.2008]
[1750914637632,0.985,2481.6,2481.2,4.23107568]
[1750914638259,0.985,2481.6,2481.2,0.2008]
[1750914641372,0.985,2481.6,2481.2,4.23110337]
[1750914642060,0.985,2481.6,2481.2,0.2008]
[1750914643466,0.7842,2481.6,2481.0,4.03055942]
[1750914643665,0.2008,2481.5,2481.0,4.23135942]
[1750914644368,0.2008,2481.5,2481.0,0.2008]
[1750914644566,0.7914,2481.4,2481.0,4.23143154]
[1750914644737,0.7914,2481.4,2481.1,4.03044166]
[1750914645349,0.2008,2481.5,2481.1,4.03045837]
[1750914645540,0.2008,2481.5,2481.3,4.03006645]
[1750914647774,0.2008,2481.5,2481.2,4.03022386]
[1750914649086,0.2008,2481.5,2481.1,4.03043283]
[1750914650179,0.2008,2481.5,2481.0,4.23138948]
[1750914650180,0.2008,2481.5,2481.0,4.23140361]
[1750914650346,0.2008,2481.5,2481.2,4.03015036]
[1750914650541,0.2008,2481.5,2481.0,0.2008]
[1750914650542,0.2008,2481.5,2481.3,4.03011161]
[1750914651109,0.2008,2481.5,2481.2,4.03026281]
[1750914651268,0.2008,2481.5,2481.3,4.03014522]
[1750914651670,0.8235,2481.6,2481.3,4.03014522]
[1750914651982,1.0243,2481.6,2481.4,4.02995543]
[1750914652144,0.2008,2481.6,2481.5,4.02982067]
[1750914652353,0.9776,2481.8,2481.5,4.02982067]
[1750914653280,0.9776,2481.8,2481.3,0.2008]
[1750914653596,0.2008,2481.6,2481.2,4.23104963]
[1750914655057,0.2008,2481.6,2481.2,0.2008]
[1750914655870,0.2008,2481.6,2481.2,4.2311052]
[1750914656578,0.2008,2481.6,2481.2,0.2008]
[1750914657587,0.2008,2481.6,2481.2,4.23109705]
[1750914658559,0.2008,2481.6,2481.2,0.2008]
[1750914659461,0.9967,2481.5,2481.1,6.562]
[1750914661691,0.9967,2481.5,2481.0,4.23143248]
[1750914661692,0.9967,2481.5,2481.0,6.7608]
[1750914663470,0.9967,2481.5,2481.0,10.79143067]
[1750914663695,0.9967,2481.5,2481.1,4.03044152]
[1750914664362,0.9967,2481.5,2481.0,10.79137167]
[1750914667298,0.9967,2481.5,2481.1,4.03045622]
[1750914667511,0.9967,2481.5,2481.0,10.79135915]
[1750914668312,0.9967,2481.5,2481.0,6.7608]
[1750914670104,0.9967,2481.5,2481.0,10.79141579]
[1750914671826,0.9967,2481.5,2481.0,6.7608]
[1750914672226,0.9967,2481.5,2481.0,10.79140413]
[1750914673021,0.9967,2481.5,2481.0,6.7608]
[1750914673228,0.9967,2481.5,2481.0,10.7914012]
[1750914673729,0.9967,2481.5,2481.0,0.2008]
[1750914673730,0.7885,2481.4,2481.0,0.2008]
[1750914673928,0.47037,2481.5,2480.1,1.10218726]
[1750914673929,0.7885,2481.2,2480.1,1.10218726]
[1750914674134,0.7885,2481.0,2480.2,16.555]
[1750914674290,0.7885,2480.9,2480.2,6.555]
[1750914674492,0.7885,2480.8,2479.9,0.7954]
[1750914674797,0.7885,2480.8,2479.7,11.04957591]
[1750914674798,0.7885,2480.7,2479.7,4.03267856]
[1750914675008,0.7885,2480.5,2479.8,6.557]
[1750914675233,1.7538424,2480.5,2479.8,6.557]
[1750914675528,0.7885,2480.5,2479.9,4.03239079]
[1750914675933,0.7885,2480.5,2479.9,0.7954]
[1750914676236,0.7885,2480.5,2480.1,4.03198515]
[1750914676397,2.4875,2480.9,2480.3,0.7954]
[1750914676734,0.7885,2480.9,2480.4,4.03148075]
[1750914677105,0.7885,2480.9,2480.3,0.7954]
[1750914677106,0.7885,2480.9,2480.5,4.03140187]
[1750914677516,0.7885,2480.9,2480.4,4.03157407]
[1750914677826,0.7885,2480.9,2480.3,4.82711596]
[1750914678316,0.7885,2480.9,2480.4,4.03158703]
[1750914679137,0.7885,2480.9,2480.1,5.69706838]
[1750914679328,0.7885,2480.9,2480.4,6.559]
[1750914680322,0.7885,2480.9,2480.2,6.559]
[1750914681142,0.7885,2480.9,2480.2,10.59089333]
[1750914681724,1.699,2480.9,2480.2,10.59090489]
[1750914681907,0.7696,2480.8,2480.2,10.59090489]
[1750914683471,0.7696,2480.8,2480.4,4.03158189]
[1750914683732,0.2008,2480.7,2480.3,4.23250099]
[1750914684136,0.7596,2480.6,2480.3,0.2008]
[1750914684342,0.7596,2480.6,2480.2,6.559]
[1750914684343,0.2008,2480.5,2480.2,6.559]
[1750914686159,0.2008,2480.5,2480.1,4.52928932]
[1750914686160,0.2008,2480.5,2480.1,0.2016]
[1750914686344,0.7662,2480.4,2480.1,6.56]
[1750914686512,0.2008,2480.3,2480.1,6.56]
[1750914687640,0.2008,2480.3,2480.1,10.59197661]
[1750914688527,0.2008,2480.3,2480.1,6.56]
[1750914693251,0.2008,2480.3,2480.0,4.03222827]
[1750914693462,0.2008,2480.3,2480.1,10.58805894]
[1750914694558,0.2008,2480.3,2480.1,6.556]
[1750914697271,0.7662,2480.4,2480.0,4.23383954]
[1750914697467,0.7662,2480.4,2480.1,6.555]
[1750914699673,0.2008,2480.5,2480.1,6.555]
[1750914700975,0.2008,2480.5,2480.1,10.58703611]
[1750914701146,0.2008,2480.5,2480.1,6.555]
[1750914702977,0.2008,2480.5,2480.1,10.58706648]
[1750914706280,0.2008,2480.5,2480.1,6.555]
[1750914706876,0.2008,2480.5,2480.1,10.58707392]
[1750914708359,0.2008,2480.5,2480.2,4.03192704]
[1750914708560,0.2008,2480.5,2480.1,6.555]
[1750914708561,0.2008,2480.5,2480.1,10.58707863]
[1750914708785,7.01683238,2481.3,2480.1,10.58707863]
[1750914708786,0.7636,2480.8,2480.4,4.0316078]
[1750914708971,0.7636,2480.8,2480.5,6.555]
[1750914709754,0.2008,2480.9,2480.5,10.58643634]
[1750914710451,0.7636,2481.2,2480.6,0.7736]
[1750914710757,0.2008,2481.1,2480.7,4.23186316]
[1750914711086,0.2008,2481.1,2480.8,6.554]
[1750914711389,0.7636,2481.2,2480.8,10.58490174]
[1750914711692,0.7636,2481.2,2480.8,10.78570174]
[1750914711856,0.2008,2481.3,2480.8,6.7548]
[1750914712061,0.2008,2481.3,2480.8,10.78570972]
[1750914712990,0.8022,2481.2,2480.8,6.7548]
[1750914715501,0.8022,2481.2,2480.8,10.78561558]
[1750914716755,0.2008,2481.3,2480.9,4.03068935]
[1750914717784,0.2008,2481.3,2481.0,4.03061763]
[1750914717981,0.2008,2481.4,2481.0,4.23141763]
[1750914718196,0.2008,2481.4,2481.1,6.554]
[1750914719692,0.2008,2481.4,2481.1,6.553]
[1750914721813,0.2008,2481.4,2481.0,4.23141858]
[1750914721814,0.7783,2481.3,2481.0,0.2008]
[1750914722106,0.7783,2481.3,2480.9,6.553]
[1750914722107,0.9791,2481.3,2480.9,6.553]
[1750914723214,0.2008,2481.3,2480.8,0.2008]
[1750914723393,0.7544,2481.2,2480.7,6.553]
[1750914723601,0.7544,2480.9,2480.7,6.553]
[1750914723843,0.7544,2480.9,2480.6,4.23207953]
[1750914724003,0.7544,2480.9,2480.7,10.58409407]
[1750914724192,0.7544,2480.9,2480.7,4.03109407]
[1750914724392,0.7544,2480.9,2480.7,6.553]
[1750914727818,0.7544,2480.9,2480.7,4.03106717]
[1750914728015,0.7544,2480.9,2480.8,6.553]